bitfinex-derivatives/quotes_BTCF0:USTF0_20250620
["timestamp","ask_amount","ask_price","bid_price","bid_amount"]
[1750419604498,0.95614648,105910.0,105900.0,1.27834057]
[1750419604690,0.59534648,105910.0,105900.0,1.27834057]
[1750419604893,0.59534648,105910.0,105900.0,1.63914057]
[1750419605404,0.59534648,105910.0,105900.0,1.27834057]
[1750419605592,0.35003245,105910.0,105900.0,1.63914057]
[1750419605797,0.09800375,105910.0,105900.0,1.97914057]
[1750419605999,0.09800375,105910.0,105900.0,2.00924057]
[1750419606199,0.09760375,105910.0,105900.0,1.97924057]
[1750419606492,0.07573855,105910.0,105900.0,1.97924057]
[1750419606894,0.09800375,105910.0,105900.0,1.97924057]
[1750419607907,0.09800375,105910.0,105900.0,2.2245546]
[1750419608200,0.07874779,105910.0,105900.0,2.2245546]
[1750419608406,0.07914779,105910.0,105900.0,2.2245546]
[1750419608702,0.07874779,105910.0,105900.0,2.2245546]
[1750419608897,0.07914779,105910.0,105900.0,2.2245546]
[1750419609099,0.07914779,105910.0,105900.0,1.97924057]
[1750419611500,0.07914779,105910.0,105900.0,2.2245546]
[1750419612303,0.07914779,105910.0,105900.0,1.97924057]
[1750419612906,0.07914779,105910.0,105900.0,2.2245546]
[1750419617215,0.0226652,105910.0,105900.0,2.2245546]
[1750419620207,0.0226652,105910.0,105900.0,1.6508746]
[1750419620398,0.0226652,105910.0,105900.0,2.3567546]
[1750419623410,0.02274666,105910.0,105900.0,2.3567546]
[1750419628909,0.02274666,105910.0,105900.0,2.7175546]
[1750419630714,0.02234666,105910.0,105900.0,2.7175546]
[1750419630916,0.02274666,105910.0,105900.0,2.7175546]
[1750419631112,6e-08,105910.0,105900.0,2.9064026]
[1750419631613,0.05648259,105920.0,105910.0,0.1888304]
[1750419631809,0.08998259,105930.0,105920.0,0.1888126]
[1750419632010,0.08998259,105930.0,105920.0,2.10750066]
[1750419633210,0.09398259,105930.0,105920.0,2.10750066]
[1750419633610,0.09398259,105930.0,105920.0,2.35281469]
[1750419633816,0.09398259,105930.0,105920.0,2.38441469]
[1750419634206,0.0367,105930.0,105920.0,2.13910066]
[1750419634408,0.0371,105930.0,105920.0,2.13910066]
[1750419634815,0.0331,105930.0,105920.0,2.13910066]
[1750419635124,0.0331,105930.0,105920.0,2.45924764]
[1750419635818,0.0331,105930.0,105920.0,2.21393361]
[1750419636321,0.0331,105930.0,105920.0,1.88393361]
[1750419636509,0.0331,105930.0,105920.0,2.23393361]
[1750419636817,0.065,105930.0,105920.0,2.23393361]
[1750419637616,0.065,105930.0,105920.0,2.21393361]
[1750419641616,0.0646,105930.0,105920.0,2.21393361]
[1750419641813,0.065,105930.0,105920.0,2.21393361]
[1750419643120,0.08727607,105930.0,105920.0,2.21393361]
[1750419644922,0.08733008,105930.0,105920.0,2.21393361]
[1750419646813,0.08733008,105930.0,105920.0,2.45924764]
[1750419647321,0.14381267,105930.0,105920.0,2.45924764]
[1750419649417,0.14381267,105930.0,105920.0,1.72330555]
[1750419649614,0.14381267,105930.0,105920.0,2.21393361]
[1750419655019,0.14382793,105930.0,105920.0,2.21393361]
[1750419656022,0.07882793,105930.0,105920.0,2.45924764]
[1750419656519,0.04014573,105930.0,105920.0,2.75394764]
[1750419656917,3e-08,105930.0,105920.0,2.75394764]
[1750419657426,3e-08,105930.0,105920.0,2.75594764]
[1750419657629,0.063,105950.0,105940.0,0.1887768]
[1750419657826,0.0638,105950.0,105940.0,1.74572486]
[1750419658826,0.0638,105950.0,105940.0,2.0949853]
[1750419659028,0.13913855,105950.0,105940.0,2.0949853]
[1750419660026,0.13913855,105950.0,105940.0,1.7549853]
[1750419660331,0.13913855,105950.0,105940.0,1.7457779]
[1750419662822,0.32789755,105950.0,105940.0,1.7457379]
[1750419668929,0.32789755,105950.0,105940.0,1.16335746]
[1750419669129,0.93401158,105950.0,105940.0,1.13028343]
[1750419669329,0.57321158,105950.0,105940.0,0.42488343]
[1750419669531,0.57321158,105950.0,105940.0,0.99792343]
[1750419670132,0.93401158,105950.0,105940.0,0.99792343]
[1750419670334,0.93401158,105950.0,105940.0,0.98871523]
[1750419670738,0.93501158,105950.0,105940.0,0.98871523]
[1750419671132,0.93501158,105950.0,105940.0,0.1703612]
[1750419671440,0.86167303,105950.0,105940.0,0.98871523]
[1750419673532,0.616359,105950.0,105940.0,0.98871523]
[1750419673738,0.86167303,105950.0,105940.0,0.98871523]
[1750419676442,0.86167303,105950.0,105940.0,0.7434012]
[1750419676642,0.86167303,105950.0,105940.0,0.98871523]
[1750419677443,0.86167303,105950.0,105940.0,0.41567523]
[1750419677746,0.9369809,105950.0,105940.0,0.98871523]
[1750419678443,0.9369809,105950.0,105940.0,0.41567523]
[1750419678744,0.9369809,105950.0,105940.0,0.98871523]
[1750419680239,0.9369809,105950.0,105940.0,0.41567523]
[1750419680440,0.9369809,105950.0,105940.0,0.98871523]
[1750419682947,0.9369809,105950.0,105940.0,0.7434012]
[1750419683253,0.9369809,105950.0,105940.0,0.98871523]
[1750419684747,0.94653486,105950.0,105940.0,0.98871523]
[1750419685142,0.70122083,105950.0,105940.0,0.98871523]
[1750419685447,0.94653486,105950.0,105940.0,0.98871523]
[1750419686047,0.70122083,105950.0,105940.0,0.98871523]
[1750419686349,0.94653486,105950.0,105940.0,0.98871523]
[1750419686647,0.94653486,105950.0,105940.0,0.97950675]
[1750419687849,0.94653486,105950.0,105940.0,0.73419272]
[1750419688050,0.94653486,105950.0,105940.0,0.97950675]
[1750419688250,0.87122699,105950.0,105940.0,0.97950675]
[1750419689038,0.62591296,105950.0,105940.0,0.97950675]
[1750419689243,0.71999516,105950.0,105940.0,0.97950675]
[1750419689439,0.96530919,105950.0,105940.0,0.97950675]
[1750419692857,0.95575523,105950.0,105940.0,0.97950675]
[1750419696763,0.95575523,105950.0,105940.0,0.97029823]
[1750419697156,0.59495523,105950.0,105940.0,0.97029823]
[1750419697360,0.95575523,105950.0,105940.0,0.97029823]
[1750419702673,0.86167303,105950.0,105940.0,0.97029823]
[1750419704266,0.99351691,105950.0,105940.0,0.97029823]
[1750419706268,1.08779661,105950.0,105940.0,0.97029823]
[1750419706468,0.95595273,105950.0,105940.0,0.97029823]
[1750419706668,0.95595273,105950.0,105940.0,0.96108971]
[1750419708971,0.7106387,105950.0,105940.0,0.96108971]
[1750419709169,0.95595273,105950.0,105940.0,0.96108971]
[1750419710468,0.95595273,105950.0,105940.0,0.71577568]
[1750419710668,0.95595273,105950.0,105940.0,0.96108971]
[1750419711369,0.95595273,105950.0,105940.0,0.71577568]
[1750419711571,0.95595273,105950.0,105940.0,0.96108971]
[1750419712170,0.95595273,105950.0,105940.0,0.71577568]
[1750419712469,0.95595273,105950.0,105940.0,0.96108971]
[1750419712973,0.95595273,105950.0,105940.0,0.71577568]
[1750419713270,0.95595273,105950.0,105940.0,0.96108971]
[1750419716372,0.97826561,105950.0,105940.0,0.71577568]
[1750419716572,0.97826561,105950.0,105940.0,0.96108971]
[1750419716771,0.97826561,105950.0,105940.0,0.95188118]
[1750419721677,0.42870661,105950.0,105940.0,1.55799521]
[1750419721877,0.70225118,105950.0,105940.0,1.25999521]
[1750419722380,0.30915118,105950.0,105940.0,1.25999521]
[1750419723280,0.12039258,105950.0,105940.0,1.25999521]
[1750419723576,0.30915118,105950.0,105940.0,1.25999521]
[1750419724772,0.55446521,105950.0,105940.0,1.25999521]
[1750419725179,0.30915118,105950.0,105940.0,1.25999521]
[1750419726679,0.30915118,105950.0,105940.0,1.25078699]
[1750419727571,0.12039258,105950.0,105940.0,1.25078699]
[1750419727980,0.36570661,105950.0,105940.0,1.25078699]
[1750419736784,0.36570661,105950.0,105940.0,1.24157878]
[1750419737387,0.47523761,105950.0,105940.0,1.31524486]
[1750419737587,0.38095791,105950.0,105940.0,1.31524486]
[1750419739184,0.47522778,105950.0,105940.0,0.8246168]
[1750419739491,0.3433839,105950.0,105940.0,1.31524486]
[1750419739786,0.34338406,105950.0,105940.0,1.31524486]
[1750419739987,0.34338386,105950.0,105940.0,1.31524486]
[1750419740391,0.0038,105950.0,105940.0,1.31524486]
[1750419740583,0.28171403,105950.0,105940.0,1.31524486]
[1750419743391,0.41355791,105950.0,105940.0,1.31524486]
[1750419745994,0.16824388,105950.0,105940.0,1.31524486]
[1750419746188,0.77435791,105950.0,105940.0,1.31524486]
[1750419746795,0.77435791,105950.0,105940.0,1.30603664]
[1750419747386,0.73679648,105950.0,105940.0,1.30603664]
[1750419748393,0.37599648,105950.0,105940.0,1.30603664]
[1750419749288,0.13068245,105950.0,105940.0,1.30603664]
[1750419749494,0.37599648,105950.0,105940.0,1.30603664]
[1750419750393,0.13068245,105950.0,105940.0,1.30603664]
[1750419751392,0.13068245,105950.0,105940.0,1.65603664]
[1750419751600,0.13068245,105950.0,105940.0,1.30603664]
[1750419756903,0.13068245,105950.0,105940.0,1.29682852]
[1750419766920,0.13068245,105950.0,105940.0,1.28762039]
[1750419769719,0.37599648,105950.0,105940.0,1.28762039]
[1750419771623,0.37599648,105950.0,105940.0,1.04230636]
[1750419773229,0.15307999,105950.0,105940.0,1.04230636]
[1750419773431,0.39839402,105950.0,105940.0,1.04230636]
[1750419776923,0.39839402,105950.0,105940.0,1.03309821]
[1750419777832,0.28171403,105950.0,105940.0,1.03309821]
[1750419778834,0.28171403,105950.0,105940.0,1.39389821]
[1750419779032,0.28171403,105950.0,105940.0,1.03309821]
[1750419785740,0.28171403,105950.0,105940.0,1.27841224]
[1750419786530,0.0038,105950.0,105940.0,1.6563923]
[1750419786731,0.0038,105950.0,105940.0,1.9663923]
[1750419787728,0.003,105950.0,105940.0,1.9663923]
[1750419787929,0.0034,105950.0,105940.0,1.9663923]
[1750419788237,0.0014,105950.0,105940.0,1.9663923]
[1750419788732,0.0004,105950.0,105940.0,1.9663923]
[1750419788932,0.0004,105950.0,105940.0,1.9683923]
[1750419793744,0.0004,105950.0,105940.0,2.3291923]
[1750419794144,0.0004,105950.0,105940.0,1.6075923]
[1750419794442,0.0004,105950.0,105940.0,2.3291923]
[1750419795547,0.0004,105950.0,105940.0,2.57450633]
[1750419795938,0.0008,105960.0,105950.0,0.1887584]
[1750419796140,0.0008,105960.0,105950.0,1.56526646]
[1750419796341,0.0325,105970.0,105960.0,0.1887406]
[1750419796642,0.0333,105970.0,105960.0,1.67552866]
[1750419797246,0.0333,105970.0,105960.0,1.69262127]
[1750419797632,0.0635,105970.0,105960.0,1.69262127]
[1750419797845,0.0639,105970.0,105960.0,1.69262127]
[1750419799049,0.0679,105970.0,105960.0,1.69262127]
[1750419799244,0.0689,105970.0,105960.0,1.69262127]
[1750419807846,0.0054,105970.0,105960.0,1.69262127]
[1750419808957,0.0054,105970.0,105960.0,2.03262127]
[1750419809257,0.005,105970.0,105960.0,2.03262127]
[1750419809859,0.0054,105970.0,105960.0,2.03262127]
[1750419810257,0.0054,105970.0,105960.0,1.69262127]
[1750419810458,0.0054,105970.0,105960.0,2.05262127]
[1750419810650,0.0054,105970.0,105960.0,1.69262127]
[1750419810856,0.038,105970.0,105960.0,1.69262127]
[1750419814563,0.038,105970.0,105960.0,2.04262127]
[1750419814961,0.038,105970.0,105960.0,1.69262127]
[1750419821477,0.13569593,105970.0,105960.0,1.59053038]
[1750419822381,0.1133126,105970.0,105960.0,1.58132509]
[1750419824282,0.11556531,105970.0,105960.0,1.58132509]
[1750419824476,0.11556531,105970.0,105960.0,1.59870954]
[1750419832690,0.08296531,105970.0,105960.0,1.94870954]
[1750419833190,0.08256531,105970.0,105960.0,1.94870954]
[1750419833389,0.08296531,105970.0,105960.0,1.94870954]
[1750419834079,0.08256531,105970.0,105960.0,1.94870954]
[1750419834280,0.08296531,105970.0,105960.0,1.94870954]
[1750419835490,0.08296531,105970.0,105960.0,2.19402357]
[1750419835691,0.00725271,105970.0,105960.0,2.19402357]
[1750419835891,0.00765271,105970.0,105960.0,2.19402357]
[1750419840797,0.06424053,105970.0,105960.0,2.19402357]
[1750419841190,0.06384053,105970.0,105960.0,2.19402357]
[1750419841394,0.06424053,105970.0,105960.0,2.19402357]
[1750419841991,0.0684146,105970.0,105960.0,2.19402357]
[1750419842187,0.00782678,105970.0,105960.0,2.19402357]
[1750419842800,0.00782678,105970.0,105960.0,2.48872357]
[1750419842991,0.00365271,105970.0,105960.0,2.48872357]
[1750419843392,0.00265271,105970.0,105960.0,2.48872357]
[1750419846204,0.00682678,105970.0,105960.0,2.48872357]
[1750419855313,0.00682678,105970.0,105960.0,2.84952357]
[1750419855912,8e-08,105970.0,105960.0,2.84952357]
[1750419860014,8e-08,105970.0,105960.0,2.35889551]
[1750419860413,5e-08,105970.0,105960.0,2.35889551]
[1750419861113,5e-08,105970.0,105960.0,2.84952357]
[1750419861916,0.05758782,105980.0,105970.0,0.1887226]
[1750419862117,0.05758782,105980.0,105970.0,1.84211066]
[1750419863220,0.05958782,105980.0,105970.0,1.84211066]
[1750419863520,0.09148782,105980.0,105970.0,1.84211066]
[1750419863720,0.09248782,105980.0,105970.0,1.84211066]
[1750419866522,0.09248782,105980.0,105970.0,1.54741066]
[1750419870825,0.09148782,105980.0,105970.0,1.54741066]
[1750419871013,0.08948782,105980.0,105970.0,1.54741066]
[1750419872025,0.08948782,105980.0,105970.0,2.11881066]
[1750419874529,0.09366189,105980.0,105970.0,2.11881066]
[1750419878530,0.09366189,105980.0,105970.0,1.35015066]
[1750419878730,0.09366189,105980.0,105970.0,1.80771663]
[1750419878923,0.09366189,105980.0,105970.0,2.05303066]
[1750419879228,0.12426189,105980.0,105970.0,2.05303066]
[1750419881432,0.14646818,105980.0,105970.0,2.05303066]
[1750419882227,0.39178221,105980.0,105970.0,0.5495226]
[1750419882428,0.59921119,105980.0,105970.0,0.43403663]
[1750419882631,0.59921119,105980.0,105970.0,1.00531663]
[1750419882835,0.52389859,105980.0,105970.0,0.43403663]
[1750419883133,0.52389859,105980.0,105970.0,1.00531663]
[1750419884430,0.59921119,105980.0,105970.0,1.00531663]
[1750419884631,0.52389859,105980.0,105970.0,1.00531663]
[1750419885835,0.52406338,105980.0,105970.0,1.00531663]
[1750419886034,0.88486338,105980.0,105970.0,1.00531663]
[1750419887733,1.13486338,105980.0,105970.0,0.1887226]
[1750419887932,1.64421001,105980.0,105970.0,0.75079709]
[1750419888233,1.39889598,105980.0,105970.0,0.75079709]
[1750419888635,1.39889598,105980.0,105970.0,0.99611112]
[1750419889136,1.14889598,105980.0,105970.0,0.99611112]
[1750419890134,1.15089598,105980.0,105970.0,0.99611112]
[1750419890637,1.15189598,105980.0,105970.0,0.99611112]
[1750419891632,0.79109598,105980.0,105970.0,0.99611112]
[1750419891829,1.15189598,105980.0,105970.0,0.99611112]
[1750419892036,0.05945228,105980.0,105970.0,1.60625918]
[1750419892236,0.2545695,106000.0,105990.0,0.1886873]
[1750419892435,0.0675,106000.0,105990.0,1.88841522]
[1750419892642,0.2545694,106000.0,105990.0,1.28230119]
[1750419892842,0.0663,106000.0,105990.0,1.88841522]
[1750419893041,0.0663,106000.0,105990.0,1.28230119]
[1750419893246,0.2549694,106000.0,105990.0,1.15761522]
[1750419893537,0.50028343,106000.0,105990.0,1.15761522]
[1750419893731,0.50728343,106000.0,105990.0,1.15761522]
[1750419894326,0.2619694,106000.0,105990.0,0.91230119]
[1750419894528,0.2619694,106000.0,105990.0,1.15761522]
[1750419894741,0.0733,106000.0,105990.0,2.33904328]
[1750419894932,0.0018,106010.0,106000.0,0.1886695]
[1750419895234,0.5877378,106040.0,106030.0,0.1886161]
[1750419895437,0.5877378,106040.0,106030.0,1.72059801]
[1750419895438,0.2238231,106040.0,106030.0,1.72059801]
[1750419895735,0.2226231,106040.0,106030.0,1.37059801]
[1750419895934,0.0340248,106040.0,106030.0,1.71833101]
[1750419896138,0.45494075,106060.0,106050.0,0.1885805]
[1750419896331,0.5818627,106060.0,106050.0,1.25498432]
[1750419896531,0.2194627,106060.0,106050.0,1.60498432]
[1750419896735,0.2198627,106060.0,106050.0,1.56498432]
[1750419897040,0.2198627,106060.0,106050.0,1.60498432]
[1750419897245,0.1889627,106060.0,106050.0,0.56647929]
[1750419897438,0.2198627,106060.0,106050.0,0.78319919]
[1750419897746,0.47064461,106060.0,106050.0,0.78323919]
[1750419897942,0.2308627,106060.0,106050.0,0.78323919]
[1750419898330,0.0739,106060.0,106050.0,1.3888211]
[1750419898542,0.011,106060.0,106050.0,2.14504301]
[1750419898842,0.1999625,106060.0,106050.0,1.5814611]
[1750419899042,0.2311625,106060.0,106050.0,0.8420611]
[1750419899245,0.2611625,106060.0,106050.0,1.5519011]
[1750419899638,0.2611625,106060.0,106050.0,1.5823011]
[1750419900351,0.0114,106060.0,106050.0,2.16708301]
[1750419900533,0.011,106060.0,106050.0,2.16708301]
[1750419900733,0.011,106060.0,106050.0,2.16920301]
[1750419900943,0.0114,106060.0,106050.0,2.16920301]
[1750419901447,1e-07,106060.0,106050.0,2.43342473]
[1750419901651,0.001,106070.0,106060.0,0.1885588]
[1750419901952,0.0018,106070.0,106060.0,1.33634071]
[1750419902147,0.001,106070.0,106060.0,1.33634071]
[1750419902345,0.0014,106070.0,106060.0,1.20494071]
[1750419902541,0.001,106070.0,106060.0,1.20494071]
[1750419902850,0.0014,106070.0,106060.0,1.20494071]
[1750419903242,0.0014,106070.0,106060.0,2.16288262]
[1750419903842,0.0014,106070.0,106060.0,1.91810071]
[1750419904247,1e-07,106070.0,106060.0,1.91810071]
[1750419904444,0.0008,106080.0,106070.0,0.1885414]
[1750419904650,0.001,106100.0,106090.0,0.1885058]
[1750419904949,0.02385187,106100.0,106090.0,2.12028771]
[1750419905265,0.0018,106100.0,106090.0,2.12028771]
[1750419905847,0.0014,106100.0,106090.0,2.12992876]
[1750419906051,0.0008,106110.0,106100.0,0.1884881]
[1750419906346,0.0313,106130.0,106120.0,0.1884526]
[1750419906644,0.08371952,106130.0,106120.0,1.73783451]
[1750419906842,0.08411952,106130.0,106120.0,1.82979658]
[1750419907044,0.27215432,106130.0,106120.0,1.82979658]
[1750419907348,0.02341952,106130.0,106120.0,1.82060468]
[1750419907547,0.001,106130.0,106120.0,2.22973149]
[1750419907846,0.001,106130.0,106120.0,2.36741149]
[1750419908036,0.001,106130.0,106120.0,2.00741149]
[1750419908238,0.1894348,106130.0,106120.0,0.9322607]
[1750419908450,0.2243348,106130.0,106120.0,0.9322607]
[1750419908646,0.2564348,106130.0,106120.0,1.4869407]
[1750419908841,0.278846,106130.0,106120.0,1.4869407]
[1750419909638,0.278846,106130.0,106120.0,1.1260607]
[1750419909848,0.278846,106130.0,106110.0,0.63211111]
[1750419909849,0.1884525,106120.0,106110.0,0.69126783]
[1750419910050,0.27345058,106120.0,106110.0,1.24682783]
[1750419910844,0.27345058,106120.0,106110.0,1.58297181]
[1750419911044,0.05249808,106120.0,106110.0,1.58297181]
[1750419911247,0.24095058,106120.0,106110.0,1.96457181]
[1750419911447,0.05349808,106120.0,106110.0,1.61457181]
[1750419911847,0.02299808,106120.0,106110.0,1.30922783]
[1750419912055,0.21185058,106120.0,106110.0,1.61521181]
[1750419912357,0.21185058,106120.0,106110.0,1.27822783]
[1750419912547,0.24445058,106120.0,106110.0,1.2608456]
[1750419912756,0.27455058,106120.0,106110.0,1.56618958]
[1750419913043,1.12914015,106120.0,106110.0,0.1884571]
[1750419913250,0.76834015,106120.0,106110.0,0.7750971]
[1750419913455,0.27452417,106120.0,106110.0,1.44124108]
[1750419913653,0.24442417,106120.0,106110.0,1.44124108]
[1750419913952,0.02337167,106120.0,106110.0,1.52135031]
[1750419914440,0.02337167,106120.0,106110.0,1.30471031]
[1750419914641,0.02297167,106120.0,106110.0,1.52123031]
[1750419915348,0.02337167,106120.0,106110.0,1.52123031]
[1750419915549,0.02337167,106120.0,106110.0,1.83123031]
[1750419915751,0.21182417,106120.0,106110.0,0.62936633]
[1750419915957,0.24222417,106120.0,106110.0,1.35336633]
[1750419916156,0.24222417,106120.0,106110.0,1.32226633]
[1750419916451,0.27392417,106120.0,106110.0,1.33146633]
[1750419916756,0.27392417,106120.0,106110.0,1.32226633]
[1750419916956,0.27392417,106120.0,106110.0,0.96146633]
[1750419917456,0.27392417,106120.0,106110.0,0.1884703]
[1750419917661,0.27392417,106120.0,106110.0,0.7747503]
[1750419917854,0.27392417,106120.0,106110.0,0.1884703]
[1750419918045,1.12854015,106120.0,106110.0,0.58628]
[1750419918246,1.12854015,106120.0,106110.0,0.7747503]
[1750419918553,0.1884703,106110.0,106100.0,0.4203163]
[1750419918857,0.63544197,106110.0,106100.0,1.0065963]
[1750419919650,0.63544197,106110.0,106100.0,0.8699963]
[1750419920264,0.69101215,106110.0,106100.0,0.8699963]
[1750419921055,0.26601215,106110.0,106100.0,0.8699963]
[1750419921457,0.27594197,106110.0,106100.0,0.8699963]
[1750419921662,0.27594197,106110.0,106100.0,1.17534028]
[1750419921962,0.27594197,106110.0,106100.0,1.53614028]
[1750419922148,0.33151215,106110.0,106100.0,1.17534028]
[1750419922348,0.05497167,106110.0,106100.0,1.53614028]
[1750419922552,0.02197167,106110.0,106100.0,1.73884028]
[1750419922860,0.02197167,106110.0,106100.0,1.83308238]
[1750419922861,0.0004,106110.0,106100.0,1.83308238]
[1750419923051,0.37483925,106120.0,106110.0,0.1884703]
[1750419923248,0.08190771,106120.0,106110.0,0.91901428]
[1750419923453,0.02713753,106120.0,106110.0,1.85481428]
[1750419923662,0.02633753,106120.0,106110.0,1.85481428]
[1750419923858,0.02673753,106120.0,106110.0,1.50481428]
[1750419924054,0.02673753,106120.0,106110.0,1.81481428]
[1750419924359,0.05697018,106120.0,106110.0,1.81481428]
[1750419924560,0.05657018,106130.0,106120.0,0.1761968]
[1750419924856,0.0240111,106130.0,106120.0,1.07137757]
[1750419925062,0.0240111,106130.0,106120.0,1.10367757]
[1750419925365,0.05737018,106130.0,106120.0,1.02902155]
[1750419925750,0.07878128,106130.0,106120.0,1.02902155]
[1750419926066,0.07918128,106130.0,106120.0,1.02902155]
[1750419926560,0.08118128,106130.0,106120.0,1.02902155]
[1750419926765,0.08118128,106130.0,106120.0,0.72367757]
[1750419926955,0.08118128,106130.0,106120.0,1.02902155]
[1750419927557,0.14498128,106130.0,106120.0,0.99692155]
[1750419927767,0.11288128,106130.0,106120.0,0.99692155]
[1750419927956,0.11288128,106130.0,106120.0,1.02043004]
[1750419928269,0.13210902,106130.0,106120.0,1.02043004]
[1750419928457,0.10040902,106130.0,106120.0,1.02043004]
[1750419929561,0.07855707,106130.0,106120.0,1.69577402]
[1750419929761,0.07855707,106130.0,106120.0,1.04508606]
[1750419929966,0.07895707,106130.0,106120.0,1.35043004]
[1750419931959,0.07895707,106130.0,106120.0,1.65577402]
[1750419932163,0.07855707,106130.0,106120.0,1.65577402]
[1750419932364,0.07895707,106130.0,106120.0,1.65577402]
[1750419933267,0.07855707,106130.0,106120.0,1.65577402]
[1750419933471,0.07895707,106130.0,106120.0,1.65577402]
[1750419933862,0.07895707,106130.0,106120.0,1.35043004]
[1750419934763,0.07895707,106130.0,106120.0,0.71508606]
[1750419934971,0.07895707,106130.0,106120.0,0.5492526]
[1750419934972,0.51638988,106130.0,106120.0,0.5492526]
[1750419935270,0.2750459,106130.0,106120.0,1.1369726]
[1750419935464,0.09078517,106130.0,106120.0,1.44231658]
[1750419935666,0.27921997,106130.0,106120.0,0.85459658]
[1750419935859,0.09078517,106130.0,106120.0,1.3086526]
[1750419936062,0.09038517,106130.0,106120.0,1.3414526]
[1750419936262,0.02678517,106130.0,106120.0,1.64679658]
[1750419936563,0.02638517,106130.0,106120.0,1.64679658]
[1750419936764,0.02678517,106130.0,106120.0,1.64679658]
[1750419938058,0.02678517,106130.0,106120.0,1.6376049]
[1750419939376,0.10190588,106130.0,106120.0,1.9776049]
[1750419939576,0.10150588,106130.0,106120.0,1.96228571]
[1750419939771,0.10190588,106130.0,106120.0,1.96228571]
[1750419940776,0.02678517,106130.0,106120.0,1.96228571]
[1750419941271,0.08311613,106130.0,106120.0,1.96228571]
[1750419941667,0.08311613,106130.0,106120.0,2.26762969]
[1750419942174,0.02638517,106130.0,106120.0,1.96228571]
[1750419942377,0.02678517,106130.0,106120.0,1.96228571]
[1750419942876,0.02678517,106130.0,106120.0,1.96328571]
[1750419943077,0.02678517,106130.0,106120.0,1.96428571]
[1750419943277,0.06090503,106130.0,106120.0,1.96428571]
[1750419943475,0.00457407,106130.0,106120.0,1.96428571]
[1750419943671,0.00457407,106130.0,106120.0,1.23648571]
[1750419943874,0.21522007,106130.0,106120.0,0.55834173]
[1750419944080,0.27922007,106130.0,106120.0,0.7788526]
[1750419944279,0.35434078,106130.0,106120.0,0.7788526]
[1750419944671,1.02048476,106130.0,106120.0,0.002]
[1750419944978,0.82847607,106130.0,106120.0,0.5904]
[1750419945478,1.13382005,106130.0,106120.0,0.5904]
[1750419945789,1.2279608,106130.0,106120.0,0.5904]
[1750419946079,1.2279608,106130.0,106120.0,0.002]
[1750419946477,1.2279608,106130.0,106120.0,0.59032]
[1750419946875,0.1884703,106110.0,106100.0,0.29986903]
[1750419947074,0.188488,106100.0,106090.0,0.2827424]
[1750419947273,1.01476302,106100.0,106090.0,0.2356175]
[1750419947475,0.6342991,106100.0,106090.0,0.8243775]
[1750419947673,0.72843985,106100.0,106090.0,0.2356175]
[1750419947983,0.1885058,106090.0,106080.0,0.2827761]
[1750419948175,0.34861696,106090.0,106080.0,0.8244059]
[1750419950470,0.2735169,106090.0,106080.0,1.12974988]
[1750419950670,0.2739169,106090.0,106080.0,1.12974988]
[1750419950979,0.2739169,106090.0,106080.0,1.49354988]
[1750419951174,0.2739169,106090.0,106080.0,1.49554988]
[1750419951380,0.33017274,106090.0,106080.0,1.49554988]
[1750419951682,0.14166694,106090.0,106080.0,1.49554988]
[1750419951883,0.14166694,106090.0,106080.0,1.55674988]
[1750419952484,0.33017274,106090.0,106080.0,1.55674988]
[1750419952686,0.14126694,106090.0,106080.0,1.55674988]
[1750419952880,0.11146694,106090.0,106080.0,1.55674988]
[1750419953080,0.11146694,106090.0,106080.0,1.69698988]
[1750419953081,0.2437169,106090.0,106080.0,1.69698988]
[1750419953780,0.2437169,106090.0,106080.0,1.55674988]
[1750419954385,0.2437169,106090.0,106080.0,0.8597059]
[1750419954690,0.2751169,106090.0,106080.0,0.8597059]
[1750419955287,0.2751169,106090.0,106080.0,1.2205059]
[1750419955589,0.2751169,106090.0,106080.0,1.52584988]
[1750419955890,0.2751169,106090.0,106080.0,1.2205059]
[1750419956484,0.2751168,106090.0,106080.0,1.2205059]
[1750419956990,0.2751168,106090.0,106080.0,0.8597059]
[1750419957191,0.2751168,106090.0,106080.0,0.8296059]
[1750419957581,0.94126078,106090.0,106080.0,0.1935157]
[1750419957792,0.82524462,106090.0,106080.0,0.7825957]
[1750419958087,1.18604462,106090.0,106080.0,0.005]
[1750419958281,1.12976106,106090.0,106080.0,0.005]
[1750419958485,1.20486112,106090.0,106080.0,0.59412]
[1750419959088,1.12976106,106090.0,106080.0,0.59412]
[1750419959890,1.12976106,106090.0,106080.0,0.59312]
[1750419960492,1.12976106,106090.0,106080.0,0.59012]
[1750419960682,1.12976106,106090.0,106080.0,0.59112]
[1750419960879,1.12976106,106090.0,106080.0,0.7796435]
[1750419961080,0.76856106,106090.0,106080.0,0.7796435]
[1750419961287,0.33123415,106090.0,106080.0,0.1905235]
[1750419961584,0.69162114,106090.0,106080.0,0.7798435]
[1750419961782,0.33122114,106090.0,106080.0,0.7798435]
[1750419962396,0.33122114,106090.0,106080.0,0.1905235]
[1750419962694,0.63656512,106090.0,106080.0,0.7796835]
[1750419963195,1.12976106,106090.0,106080.0,0.59112]
[1750419963488,1.12976106,106090.0,106080.0,0.1905235]
[1750419963795,1.12976106,106090.0,106080.0,0.7796435]
[1750419964188,0.94123306,106090.0,106080.0,0.7796435]
[1750419964386,0.63588908,106090.0,106080.0,0.7796435]
[1750419964897,0.27508908,106090.0,106080.0,0.7799235]
[1750419965092,0.29944929,106090.0,106080.0,1.08526748]
[1750419965304,0.29944929,106090.0,106080.0,1.14816748]
[1750419965795,0.29944929,106090.0,106080.0,1.50896748]
[1750419965999,0.08291766,106090.0,106080.0,1.50896748]
[1750419966196,0.08251766,106090.0,106080.0,1.50896748]
[1750419966398,0.27142346,106090.0,106080.0,1.50896748]
[1750419967198,0.27102346,106090.0,106080.0,1.50896748]
[1750419967499,0.27142346,106090.0,106080.0,1.50896748]
[1750419967996,0.27142346,106090.0,106080.0,1.50980748]
[1750419968187,0.27142346,106090.0,106080.0,1.32128398]
[1750419968601,0.63222346,106090.0,106080.0,0.96048398]
[1750419968894,0.63222346,106090.0,106080.0,0.37024398]
[1750419969093,0.96966744,106090.0,106080.0,0.002]
[1750419969291,1.02120729,106090.0,106080.0,0.002]
[1750419969493,1.16248729,106090.0,106080.0,0.002]
[1750419969698,0.08296881,106090.0,106080.0,1.23776748]
[1750419969898,0.27147451,106090.0,106080.0,1.27036748]
[1750419970091,0.07839474,106090.0,106080.0,1.27036748]
[1750419970287,0.07879474,106090.0,106080.0,1.27036748]
[1750419970492,0.07879474,106090.0,106080.0,1.86120748]
[1750419970892,0.02258338,106090.0,106080.0,2.30683146]
[1750419971088,0.02775745,106090.0,106080.0,2.30683146]
[1750419971294,0.02775745,106090.0,106080.0,1.95583146]
[1750419971502,0.02775745,106090.0,106080.0,1.65048748]
[1750419971704,0.02775745,106090.0,106080.0,2.00048748]
[1750419972296,0.02775745,106090.0,106080.0,2.01048748]
[1750419972501,0.21626315,106090.0,106080.0,2.01548748]
[1750419972701,0.27247451,106090.0,106080.0,2.01548748]